bitfinex/quotes_SOLUSD_20230702
["timestamp","ask_amount","ask_price","bid_price","bid_amount"]
[1688257752488,92.0104,18.787,18.762,55.0]
[1688257752489,147.0104,18.787,18.766,22.54]
[1688257752784,147.0104,18.787,18.763,22.544]
[1688257752785,55.0,18.787,18.763,22.544]
[1688257753005,55.0,18.787,18.756,58.06]
[1688257753006,112.0104,18.786,18.756,58.06]
[1688257753284,112.0104,18.786,18.757,20.0]
[1688257753475,55.0,18.785,18.757,20.0]
[1688257753674,55.0,18.785,18.758,22.549]
[1688257753878,55.0,18.785,18.766,22.54]
[1688257754083,92.0104,18.786,18.766,22.54]
[1688257754472,20.0,18.785,18.766,22.54]
[1688257754668,20.0,18.785,18.756,105.934]
[1688257754876,16.95,18.78,18.754,22.554]
[1688257755087,20.0,18.779,18.754,22.554]
[1688257755474,55.0,18.778,18.754,22.554]
[1688257755687,20.0,18.777,18.754,22.554]
[1688257755888,152.7817,18.776,18.754,22.554]
[1688257756082,20.0,18.775,18.754,22.554]
[1688257756480,75.019,18.776,18.754,22.554]
[1688257756788,17.21,18.8,18.76,17.05]
[1688257756990,17.21,18.8,18.767,22.538]
[1688257756991,99.5725,18.789,18.767,22.538]
[1688257757179,17.21,18.8,18.761,113.045]
[1688257757180,17.05,18.79,18.761,113.045]
[1688257757383,99.5725,18.788,18.766,22.54]
[1688257757586,99.5725,18.788,18.77,17.0]
[1688257757893,99.5725,18.788,18.774,22.53]
[1688257758496,20.0,18.787,18.767,55.0]
[1688257758679,20.0,18.787,18.77,22.535]
[1688257758880,55.0,18.786,18.77,22.535]
[1688257759079,20.0,18.785,18.77,22.535]
[1688257759479,20.0,18.785,18.766,55.0]
[1688257759480,55.0,18.784,18.766,77.54]
[1688257759881,99.5725,18.789,18.77,16.92]
[1688257760086,43.54998353,18.8,18.77,16.92]
[1688257760087,94.9801,18.798,18.776,22.528]
[1688257760595,77.54,18.792,18.776,22.528]
[1688257760977,77.54,18.792,18.777,55.0]
[1688257761177,94.9801,18.798,18.781,22.522]
[1688257761477,718.5,18.813,18.781,22.522]
[1688257761478,26.549882,18.805,18.782,55.0]
[1688257761694,94.9801,18.811,18.79,16.94]
[1688257761897,94.9801,18.811,18.793,22.507]
[1688257762089,94.9801,18.811,18.79,16.94]
[1688257762392,94.9801,18.811,18.782,55.0]
[1688257762691,94.9801,18.811,18.786,22.516]
[1688257762995,94.9801,18.811,18.787,55.0]
[1688257763301,94.9801,18.811,18.788,100.4179576]
[1688257763491,16.95,18.81,18.781,55.18431097]
[1688257763797,97.61934498,18.803,18.781,22.522]
[1688257764181,2.63924498,18.803,18.79,17.05]
[1688257764386,2.63924498,18.803,18.79,39.561]
[1688257764589,2.63924498,18.803,18.788,22.513]
[1688257764794,2.63924498,18.803,18.78,16.92]
[1688257765182,2.63924498,18.803,18.78,39.443]
[1688257765674,17.01,18.8,18.765,105.886]
[1688257765878,2.63924498,18.803,18.776,22.528]
[1688257765879,20.0,18.799,18.776,22.528]
[1688257766079,20.0,18.799,18.767,58.027]
[1688257766291,20.0,18.799,18.77,128.394]
[1688257766489,20.0,18.799,18.77,145.254]
[1688257766897,55.0,18.798,18.77,145.254]
[1688257767197,20.0,18.797,18.77,22.534]
[1688257767380,55.0,18.796,18.77,22.534]
[1688257767692,119.8915,18.795,18.77,22.534]
[1688257768024,119.8915,18.795,18.78,16.89]
[1688257768025,99.8915,18.795,18.78,16.89]
[1688257768181,16.92,18.82,18.78,16.89]
[1688257768182,16.92,18.82,18.79,16.89]
[1688257768384,99.8915,18.819,18.793,186.176]
[1688257768581,21.295026,18.81,18.793,186.176]
[1688257768786,21.295026,18.81,18.793,22.507]
[1688257769787,20.0,18.809,18.791,22.509]
[1688257771492,20.0,18.809,18.792,55.0]
[1688257771686,20.0,18.809,18.795,22.505]
[1688257772109,21.295026,18.81,18.795,22.505]
[1688257772413,99.8915,18.819,18.798,22.502]
[1688257772591,20.0,18.818,18.798,22.502]
[1688257772790,20.0,18.818,18.785,105.772]
[1688257773196,20.0,18.818,18.79,22.51]
[1688257773391,20.0,18.818,18.785,57.97]
[1688257773894,20.0,18.818,18.789,22.512]
[1688257774095,23.94404498,18.803,18.789,22.512]
[1688257774403,2.63924498,18.803,18.789,128.265]
[1688257774598,2.63924498,18.803,18.793,22.507]
[1688257774908,2.63924498,18.803,18.796,80.438]
[1688257775518,2.63924498,18.803,18.796,22.503]
[1688257775802,2.63924498,18.803,18.787,21.293998]
[1688257776104,2.63924498,18.803,18.78,16.86]
[1688257776105,2.63924498,18.803,18.792,22.508]
[1688257776299,2.63924498,18.803,18.786,57.968]
[1688257776609,2.63924498,18.803,18.79,22.511]
[1688257776992,2.63924498,18.803,18.782,57.98]
[1688257777306,2.63924498,18.803,18.784,57.972]
[1688257777607,2.63924498,18.803,18.787,22.514]
[1688257778798,2.63924498,18.803,18.78,57.986]
[1688257778997,2.63924498,18.803,18.777,163.81]
[1688257779197,2.63924498,18.803,18.782,22.521]
[1688257780288,2.63924498,18.803,18.782,33.35819922]
[1688257780488,2.63924498,18.803,18.782,22.521]
[1688257780688,16.88,18.8,18.777,22.526]
[1688257780998,55.0,18.799,18.777,22.526]
[1688257781310,20.0,18.798,18.777,22.526]
[1688257781494,117.3321,18.798,18.777,33.36319922]
[1688257781814,117.3321,18.798,18.777,22.526]
[1688257783001,55.0,18.797,18.777,22.526]
[1688257783197,20.0,18.796,18.777,22.526]
[1688257783712,97.3321,18.798,18.777,22.526]
[1688257784004,75.0,18.797,18.777,22.526]
[1688257785499,75.0,18.797,18.771,68.84919922]
[1688257785799,75.0,18.797,18.774,22.53]
[1688257786307,75.0,18.797,18.772,22.532]
[1688257786794,75.0,18.797,18.773,10.83719922]
[1688257787001,75.0,18.797,18.78,22.523]
[1688257788713,20.0,18.797,18.78,22.523]
[1688257789813,20.0,18.797,18.779,22.524]
[1688257790007,20.0,18.797,18.775,58.0]
[1688257790008,20.0,18.797,18.78,22.523]
[1688257790806,22.526,18.799,18.78,22.523]
[1688257790997,2.63924498,18.803,18.786,80.483]
[1688257791197,2.63924498,18.803,18.791,186.196]
[1688257791798,2.63924498,18.803,18.792,65.83719922]
[1688257792121,2.63924498,18.803,18.795,22.505]
[1688257795512,2.63924498,18.803,18.796,55.0]
[1688257795717,2.63924498,18.803,18.798,80.433]
[1688257795925,4.498e-05,18.803,18.798,80.433]
[1688257796213,4.498e-05,18.803,18.8,128.189]
[1688257796620,4.498e-05,18.803,18.802,80.416]
[1688257796817,4.498e-05,18.803,18.802,135.416]
[1688257797318,4.498e-05,18.803,18.802,91.25319922]
[1688257797515,4.498e-05,18.803,18.802,22.497]
[1688257798814,4.498e-05,18.803,18.8,22.498]
[1688257799026,4.498e-05,18.803,18.795,22.505]
[1688257799524,4.498e-05,18.803,18.789,57.958]
[1688257799815,4.498e-05,18.803,18.786,57.968]
[1688257800018,4.498e-05,18.803,18.789,22.512]
[1688257800225,4.498e-05,18.803,18.78,57.986]
[1688257800402,4.498e-05,18.803,18.782,22.52]
[1688257800912,4.498e-05,18.803,18.782,32.27071222]
[1688257801112,4.498e-05,18.803,18.782,31.72841322]
[1688257801920,4.498e-05,18.803,18.789,22.513]
[1688257802519,4.498e-05,18.803,18.782,57.978]
[1688257802520,4.498e-05,18.803,18.785,22.517]
[1688257802723,7.57466299,18.803,18.784,22.518]
[1688257802923,4.498e-05,18.803,18.784,22.518]
[1688257804810,7.58078068,18.802,18.784,22.518]
[1688257805006,4.498e-05,18.803,18.784,22.518]
[1688257806116,7.58082566,18.803,18.784,22.518]
[1688257806514,55.0,18.802,18.784,22.518]
[1688257807126,4.498e-05,18.803,18.784,22.518]
[1688257808219,7.58082566,18.803,18.784,22.518]
[1688257808435,7.58078068,18.802,18.784,22.518]
[1688257808622,16.89,18.8,18.782,22.52]
[1688257808828,16.89,18.8,18.779,57.989]
[1688257808829,75.0,18.799,18.773,58.006]
[1688257809023,82.58078068,18.799,18.774,105.834]
[1688257809231,90.673,18.798,18.783,22.519]
[1688257809431,75.0,18.797,18.783,22.519]
[1688257809733,82.58078068,18.797,18.77,105.855]
[1688257809914,140.56278068,18.797,18.778,22.525]
[1688257810231,140.56278068,18.797,18.778,22.526]
[1688257810531,140.56278068,18.797,18.778,80.519]
[1688257811318,140.56278068,18.797,18.776,22.528]
[1688257812125,57.982,18.797,18.776,22.528]
[1688257812340,90.673,18.798,18.777,10.83719922]
[1688257812521,90.673,18.798,18.783,186.282]
[1688257812926,113.201,18.798,18.783,186.282]
[1688257813127,113.201,18.798,18.783,80.497]
[1688257813928,4.498e-05,18.803,18.784,10.83719922]
[1688257814147,4.498e-05,18.803,18.789,22.512]
[1688257814318,16.84,18.8,18.782,22.521]
[1688257814719,27.58078068,18.799,18.782,22.521]
[1688257815029,55.0,18.798,18.782,22.521]
[1688257815231,20.0,18.797,18.782,22.521]
[1688257815492,55.0,18.796,18.782,22.521]
[1688257815735,20.0,18.795,18.782,22.521]
[1688257816420,20.0,18.797,18.782,22.521]
[1688257816813,27.58078068,18.797,18.782,22.521]
[1688257817019,27.58078068,18.797,18.775,58.0]
[1688257817214,27.58078068,18.797,18.781,22.522]
[1688257817215,7.58078068,18.796,18.781,22.522]
[1688257817437,20.0,18.795,18.781,22.522]
[1688257817734,7.58078068,18.794,18.781,22.522]
[1688257817937,55.0,18.793,18.781,22.522]
[1688257818442,62.58078068,18.793,18.781,22.522]
[1688257819436,7.58078068,18.793,18.781,22.522]
[1688257819627,20.0,18.795,18.781,22.522]
[1688257819818,7.58078068,18.795,18.781,22.522]
[1688257820019,20.0,18.794,18.781,22.522]
[1688257820222,95.9021,18.798,18.781,22.522]
[1688257820416,20.0,18.797,18.781,22.522]
[1688257821020,28.89770168,18.8,18.781,22.522]
[1688257821021,21.316921,18.8,18.782,55.0]
[1688257821227,21.316921,18.8,18.787,80.479]
[1688257821524,4.498e-05,18.803,18.787,80.479]
[1688257822033,21.30384598,18.803,18.787,80.479]
[1688257822922,22.501,18.799,18.787,80.479]
[1688257823222,22.501,18.799,18.787,22.515]
[1688257823541,20.0,18.798,18.777,57.996]
[1688257823739,20.0,18.798,18.776,57.996]
[1688257823740,22.509,18.792,18.776,57.996]
[1688257824118,22.509,18.792,18.778,22.525]
[1688257824320,55.0,18.791,18.766,105.878]
[1688257824539,55.0,18.791,18.772,22.532]
[1688257824540,80.495,18.784,18.772,22.532]
[1688257824842,55.0,18.783,18.772,22.532]
[1688257825037,22.524,18.78,18.772,22.532]
[1688257825338,22.524,18.78,18.753,48.151]
[1688257825542,22.524,18.78,18.761,22.546]
[1688257826028,22.524,18.78,18.762,10.83719922]
[1688257826228,22.524,18.78,18.767,80.565]
[1688257826428,22.524,18.78,18.767,22.539]
[1688257828835,22.522,18.782,18.767,22.539]
[1688257829037,22.522,18.782,18.768,65.83719922]
[1688257829240,22.522,18.782,18.772,22.533]
[1688257829538,22.522,18.782,18.766,58.03]
[1688257829738,22.522,18.782,18.771,22.533]
[1688257830141,80.499,18.782,18.771,22.533]
[1688257830322,22.522,18.782,18.771,22.533]
[1688257831922,7.64532124,18.789,18.771,22.533]
[1688257832128,80.494,18.786,18.776,22.528]
[1688257832337,22.517,18.786,18.776,22.528]
[1688257833443,377.49916472,18.791,18.776,22.528]
[1688257834634,319.49916472,18.791,18.776,22.528]
[1688257834845,22.516,18.787,18.776,22.528]
[1688257839660,22.516,18.787,18.769,105.865]
[1688257839661,80.505,18.782,18.77,22.535]
[1688257840021,22.526,18.778,18.77,22.535]
[1688257840226,22.526,18.778,18.762,58.042]
[1688257840523,22.526,18.778,18.767,22.539]
[1688257840728,22.519,18.784,18.767,80.566]
[1688257840930,22.519,18.784,18.768,30.83719922]
[1688257841238,57.964,18.788,18.772,22.532]
[1688257841434,22.514,18.788,18.772,22.532]
[1688257841654,22.514,18.788,18.773,10.83719922]
[1688257841827,22.514,18.788,18.777,22.526]
[1688257842539,67.17744323,18.797,18.778,55.0]
[1688257842540,268.85223347,18.797,18.778,55.0]
[1688257842746,105.707,18.798,18.778,10.83719922]
[1688257843062,22.509,18.793,18.781,22.522]
[1688257843627,22.509,18.793,18.77,16.9]
[1688257843931,22.509,18.793,18.781,22.522]
[1688257844250,22.509,18.793,18.773,10.83719922]
[1688257844547,22.509,18.793,18.777,22.527]
[1688257844840,30.15432124,18.793,18.773,10.83719922]
[1688257845042,88.09732124,18.793,18.77,58.015]
[1688257845351,80.48,18.787,18.775,22.529]
[1688257845642,22.52,18.783,18.763,58.039]
[1688257845841,55.0,18.782,18.763,58.039]
[1688257846031,22.528,18.777,18.767,22.538]
[1688257846334,62.64532124,18.782,18.767,22.538]
[1688257846543,55.0,18.781,18.767,22.538]
[1688257847040,22.525,18.779,18.767,22.538]
[1688257848824,75.0,18.778,18.753,105.955]
[1688257849040,80.55,18.771,18.755,58.062]
[1688257849844,80.55,18.771,18.759,22.548]
[1688257850830,55.0,18.77,18.752,58.072]
[1688257851128,22.542,18.765,18.752,22.556]
[1688257851331,20.0,18.764,18.752,22.556]
[1688257851540,22.547,18.761,18.752,22.556]
[1688257853035,55.0,18.76,18.75,22.558]
[1688257853248,55.0,18.76,18.742,10.83719922]
[1688257853249,22.551,18.757,18.749,22.56]
[1688257853543,22.551,18.757,18.74,58.11]
[1688257853544,55.0,18.756,18.74,58.11]
[1688257853731,22.551,18.757,18.745,22.565]
[1688257853932,22.556,18.753,18.745,22.565]
[1688257855129,22.554,18.755,18.745,22.565]
[1688257856543,22.554,18.755,18.738,164.152]
[1688257856746,22.554,18.755,18.745,22.565]
[1688257857948,58.063,18.761,18.745,128.566]
[1688257858251,22.549,18.759,18.745,128.566]
[1688257858447,90.8413,18.767,18.745,139.40319922]
[1688257858448,148.8693,18.767,18.745,139.40319922]
[1688257858647,22.546,18.762,18.752,22.557]
[1688257858848,22.546,18.762,18.744,58.096]
[1688257859230,22.552,18.756,18.742,10.83719922]
[1688257859952,22.552,18.756,18.746,22.563]
[1688257860451,55.0,18.755,18.746,22.563]
[1688257860653,22.557,18.753,18.746,22.563]
[1688257860852,22.557,18.753,18.744,22.566]
[1688257862460,22.557,18.753,18.726,27.00181129]
[1688257862461,22.557,18.753,18.733,106.065]
[1688257862764,22.557,18.753,18.721,3.0]
[1688257862765,55.0,18.752,18.721,3.0]
[1688257863045,22.565,18.746,18.737,22.574]
[1688257864650,58.067,18.754,18.737,33.41119922]
[1688257864831,22.56,18.75,18.737,22.574]
[1688257865032,55.0,18.749,18.737,22.574]
[1688257865249,22.565,18.746,18.737,22.574]
[1688257865953,7.787527,18.754,18.738,20.0]
[1688257866257,22.56,18.75,18.74,22.571]
[1688257868339,22.557,18.752,18.74,22.571]
[1688257869449,80.628,18.752,18.734,10.83719922]
[1688257869658,22.564,18.746,18.739,22.572]
[1688257870157,151.3464,18.751,18.739,22.572]
[1688257870158,96.3464,18.751,18.739,22.572]
[1688257870360,22.561,18.749,18.739,22.572]
[1688257870661,22.561,18.749,18.734,58.127]
[1688257871356,22.561,18.749,18.739,22.572]
[1688257871653,22.561,18.749,18.733,58.131]
[1688257872450,22.561,18.749,18.74,22.571]
[1688257875858,22.561,18.749,18.738,22.573]
[1688257876161,22.561,18.749,18.733,22.579]
[1688257876367,22.567,18.744,18.733,22.579]
[1688257876951,22.567,18.744,18.733,80.711]
[1688257877448,22.565,18.746,18.733,80.711]
[1688257877862,154.4244,18.751,18.733,80.711]
[1688257877863,22.563,18.747,18.733,80.711]
[1688257878164,154.4244,18.751,18.733,80.711]
[1688257878662,22.565,18.746,18.733,80.711]
[1688257878849,22.565,18.746,18.733,22.579]
[1688257882565,55.0,18.745,18.733,22.579]
[1688257882753,22.569,18.743,18.733,22.579]
[1688257883351,22.572,18.74,18.733,22.579]
[1688257884861,22.572,18.74,18.726,58.153]
[1688257885773,22.572,18.74,18.73,22.583]
[1688257887068,128.601,18.74,18.728,22.586]
[1688257887273,55.0,18.739,18.728,22.586]
[1688257887457,55.0,18.739,18.721,58.169]
[1688257887458,22.577,18.736,18.721,58.169]
[1688257887773,22.583,18.731,18.724,22.59]
[1688257888357,22.583,18.731,18.718,58.178]
[1688257888667,22.583,18.731,18.719,19.5]
[1688257888864,22.583,18.731,18.722,22.593]
[1688257889954,22.593,18.736,18.722,22.593]
[1688257890154,94.8823,18.738,18.722,22.593]
[1688257890155,22.578,18.735,18.722,22.593]
[1688257890563,55.0,18.734,18.722,22.593]
[1688257890760,22.583,18.731,18.722,22.593]
[1688257891868,55.0,18.734,18.722,22.593]
[1688257892370,153.0513,18.738,18.722,22.593]
[1688257892555,16.78,18.76,18.73,186.807]
[1688257892762,92.5478,18.749,18.73,186.807]
[1688257893069,16.78,18.76,18.73,203.607]
[1688257893070,6.6937185,18.754,18.73,203.607]
[1688257893255,6.6937185,18.754,18.737,22.574]
[1688257893455,20.0,18.753,18.737,22.574]
[1688257893872,7.6937185,18.752,18.737,22.574]
[1688257894083,111.6015,18.753,18.729,164.231]
[1688257894254,111.6015,18.753,18.726,58.153]
[1688257894255,16.9,18.75,18.726,58.153]
[1688257894453,20.0,18.749,18.732,22.58]
[1688257895074,55.0,18.748,18.732,22.58]
[1688257895277,20.0,18.747,18.732,22.58]
[1688257896277,55.0,18.748,18.732,22.58]
[1688257896278,91.6015,18.752,18.732,22.58]
[1688257896462,91.6015,18.752,18.733,55.0]
[1688257896781,91.6015,18.752,18.738,80.688]
[1688257897579,55.0,18.751,18.738,22.573]
[1688257899764,91.6015,18.752,18.738,22.573]
[1688257901384,7.6824373,18.758,18.738,22.573]
[1688257901581,58.117,18.754,18.738,22.573]
[1688257901886,20.0,18.753,18.738,22.573]
[1688257902368,113.7178,18.756,18.738,22.573]
[1688257902687,55.0,18.755,18.738,22.573]
[1688257902892,20.0,18.754,18.738,22.573]
[1688257905183,53.61,18.766,18.74,33.63]
[1688257905378,53.61,18.766,18.746,22.564]
[1688257905379,94.4297,18.766,18.746,22.564]
[1688257905582,33.63,18.764,18.747,55.0]
[1688257905774,20.0,18.763,18.752,22.557]
[1688257906967,27.6824373,18.763,18.752,22.557]
[1688257908277,20.0,18.763,18.752,22.557]
[1688257908481,67.66,18.78,18.752,22.557]
[1688257908674,91.0653,18.77,18.758,22.55]
[1688257909487,58.008,18.773,18.758,80.605]
[1688257909794,58.008,18.773,18.75,67.52]
[1688257909795,22.536,18.77,18.75,33.79]
[1688257909983,22.536,18.77,18.754,22.554]
[1688257909984,56.296,18.77,18.754,22.554]
[1688257910186,56.296,18.77,18.75,22.559]
[1688257910378,27.6824373,18.769,18.75,22.559]
[1688257910580,27.6824373,18.769,18.742,67.21456]
[1688257910581,186.48,18.764,18.748,22.561]
[1688257910789,20.0,18.763,18.748,22.561]
[1688257911094,22.549,18.759,18.748,22.561]
[1688257911974,55.0,18.758,18.748,22.561]
[1688257912281,7.6824373,18.762,18.748,22.561]
[1688257912479,55.0,18.761,18.748,22.561]
[1688257912877,62.6824373,18.761,18.748,22.561]
[1688257913286,41.6124373,18.76,18.746,22.563]
[1688257913492,55.0,18.759,18.746,22.563]
[1688257913789,94.7204,18.758,18.746,22.563]
[1688257914088,55.0,18.757,18.746,22.563]
[1688257915600,7.6824373,18.756,18.736,106.05]
[1688257915780,7.6824373,18.756,18.738,22.574]
[1688257915781,27.6824373,18.756,18.738,22.574]
[1688257915976,55.0,18.755,18.738,22.574]
[1688257916181,20.0,18.754,18.738,22.574]
[1688257916481,55.0,18.753,18.738,22.574]
[1688257916796,62.6824373,18.753,18.738,22.574]
[1688257917780,22.56,18.75,18.738,22.574]
[1688257919011,22.56,18.75,18.738,33.41119922]
[1688257919381,58.062,18.756,18.738,33.41119922]
[1688257919608,20.0,18.755,18.738,22.574]
[1688257919792,58.062,18.75,18.738,22.574]
[1688257920103,92.6822,18.749,18.737,22.575]
[1688257920601,55.0,18.748,18.737,22.575]
[1688257920797,58.062,18.75,18.737,22.575]
[1688257921099,7.6824373,18.759,18.738,55.0]
[1688257921406,91.0358,18.758,18.744,22.566]
[1688257921587,7.6824373,18.759,18.744,22.566]
[1688257921788,62.6824373,18.759,18.744,22.566]
[1688257922103,22.554,18.755,18.744,22.566]
[1688257924385,22.554,18.755,18.744,33.40319922]
[1688257924814,22.554,18.755,18.744,80.664]
[1688257925106,22.554,18.755,18.744,22.566]
[1688257927005,22.552,18.757,18.744,33.40319922]
[1688257927500,22.552,18.757,18.745,10.83719922]
[1688257927705,22.552,18.757,18.748,22.561]
[1688257931219,91.0358,18.761,18.748,22.561]
[1688257931510,97.1542,18.766,18.749,42.56]
[1688257931709,97.1542,18.766,18.749,22.56]
[1688257932008,58.09,18.762,18.749,22.56]
[1688257932200,20.0,18.761,18.749,22.56]
[1688257933600,55.0,18.76,18.744,10.83719922]
[1688257933814,88.85,18.76,18.736,106.05]
[1688257934011,88.85,18.76,18.731,58.136]
[1688257934012,20.0,18.759,18.731,58.136]
[1688257934217,33.6,18.75,18.728,58.147]
[1688257934396,186.677,18.744,18.722,58.166]
[1688257934595,67.53,18.74,18.715,37.03]
[1688257934798,186.786,18.733,18.716,58.184]
[1688257935116,186.786,18.733,18.718,22.597]
[1688257935291,80.734,18.728,18.718,22.597]
[1688257935703,80.734,18.728,18.713,58.194]
[1688257935994,80.734,18.728,18.686,12.35884645]
[1688257935995,22.591,18.724,18.716,22.599]
[1688257936190,22.589,18.726,18.716,22.599]
[1688257936889,22.589,18.726,18.71,16.85]
[1688257936890,22.089,18.726,18.712,22.604]
[1688257937125,55.0,18.725,18.71,22.607]
[1688257937300,80.766,18.721,18.704,69.05819922]
[1688257937606,22.599,18.717,18.71,22.607]
[1688257938011,22.596,18.721,18.71,22.607]
[1688257938225,157.5607,18.725,18.71,22.607]
[1688257938226,22.592,18.723,18.71,22.607]
[1688257938519,20.0,18.722,18.71,22.607]
[1688257939003,22.592,18.724,18.71,22.607]
[1688257939196,99.4007,18.732,18.71,39.607]
[1688257939399,22.586,18.728,18.711,20.0]
[1688257939704,22.591,18.724,18.716,22.6]
[1688257939908,22.594,18.721,18.716,22.6]
[1688257941209,58.141,18.731,18.716,22.6]
[1688257941512,55.0,18.73,18.716,22.6]
[1688257942809,22.587,18.728,18.716,22.6]
[1688257943211,80.735,18.728,18.716,22.6]
[1688257943416,22.591,18.724,18.716,22.6]
[1688257944498,22.588,18.727,18.716,22.6]
[1688257944702,58.129,18.734,18.717,55.0]
[1688257944922,42.583,18.731,18.721,22.594]
[1688257945918,158.896,18.731,18.712,58.196]
[1688257946121,158.896,18.731,18.719,22.597]
[1688257946499,55.0,18.73,18.719,22.597]
[1688257946700,22.588,18.727,18.719,22.597]
[1688257950111,22.588,18.727,18.713,55.0]
[1688257950705,22.588,18.727,18.717,22.598]
[1688257951306,55.0,18.726,18.717,22.598]
[1688257951515,22.592,18.724,18.717,22.598]
[1688257951705,55.0,18.723,18.717,22.598]
[1688257951906,22.594,18.722,18.717,22.598]
[1688257952315,22.594,18.722,18.715,22.601]
[1688257952509,22.594,18.722,18.7,16.85]
[1688257952510,55.0,18.721,18.713,22.603]
[1688257952715,22.597,18.719,18.713,22.603]
[1688257952905,22.596,18.721,18.713,22.604]
[1688257953105,58.163,18.724,18.713,22.604]
[1688257953313,75.0,18.723,18.713,22.604]
[1688257954031,22.596,18.72,18.702,58.227]
[1688257954318,22.603,18.714,18.706,22.613]
[1688257954912,22.601,18.716,18.706,22.613]
[1688257955115,22.597,18.72,18.706,22.613]
[1688257955302,114.3026,18.723,18.706,22.613]
[1688257955509,22.594,18.722,18.707,55.0]
[1688257955721,20.0,18.721,18.711,80.805]
[1688257955923,42.595,18.721,18.711,80.805]
[1688257956213,42.595,18.721,18.711,22.606]
[1688257956510,42.595,18.721,18.702,58.228]
[1688257957224,55.0,18.72,18.706,22.612]
[1688257957436,22.601,18.716,18.69,44.15011591]
[1688257957729,22.601,18.716,18.692,22.629]
[1688257957730,75.0,18.715,18.692,22.629]
[1688257957914,187.03,18.709,18.686,58.278]
[1688257958233,80.848,18.702,18.686,58.278]
[1688257958408,20.0,18.701,18.683,164.636]
[1688257958609,22.624,18.697,18.688,22.633]
[1688257959223,22.624,18.697,18.681,22.642]
[1688257959413,106.272,18.698,18.681,22.642]
[1688257959414,22.63,18.692,18.681,22.642]
[1688257960211,22.63,18.692,18.682,20.0]
[1688257960413,98.2211,18.697,18.685,22.638]
[1688257960620,80.04167133,18.716,18.685,22.638]
[1688257960822,93.5773,18.707,18.685,22.638]
[1688257961024,20.0,18.709,18.686,55.0]
[1688257961227,113.5773,18.709,18.692,22.628]
[1688257962014,22.617,18.703,18.687,58.273]
[1688257962242,22.617,18.703,18.684,58.284]
[1688257962416,113.5773,18.702,18.688,22.634]